[Event "*** Titled Tuesday Blitz"]
[Site "Chess.com"]
[Date "2019.12.03"]
[Round "7"]
[White "Darhild"]
[Black "Gabrielian_Artur"]
[Result "0-1"]
[WhiteElo "2654"]
[BlackElo "2795"]
[TimeControl "180+2"]
[EndTime "14:30:37 PST"]
[Termination "Gabrielian_Artur won by resignation"]

1. e4 {[%clk 0:03:01.9]} 1... c5 {[%clk 0:03:00.6]} 2. Nf3 {[%clk 0:03:01.7]}
2... d6 {[%clk 0:03:01.7]} 3. d4 {[%clk 0:03:03.3]} 3... cxd4 {[%clk 0:03:02.8]}
4. Nxd4 {[%clk 0:03:05.2]} 4... Nf6 {[%clk 0:03:04.1]} 5. Nc3 {[%clk 0:03:06.6]}
5... Nc6 {[%clk 0:03:05.6]} 6. g3 {[%clk 0:03:06.6]} 6... e6 {[%clk 0:03:04.5]}
7. Bg2 {[%clk 0:03:07.1]} 7... Be7 {[%clk 0:03:04.4]} 8. Nxc6 {[%clk 0:02:50.8]}
8... bxc6 {[%clk 0:03:05.6]} 9. e5 {[%clk 0:02:52.4]} 9... dxe5 {[%clk
0:03:05.7]} 10. Qxd8+ {[%clk 0:02:37.6]} 10... Kxd8 {[%clk 0:03:05.8]} 11. Bxc6
{[%clk 0:02:39.4]} 11... Rb8 {[%clk 0:03:06.7]} 12. Be3 {[%clk 0:02:38.3]} 12...
Kc7 {[%clk 0:02:56.3]} 13. Bxa7 {[%clk 0:02:16.2]} 13... Rxb2 {[%clk 0:02:51.4]}
14. Ba4 {[%clk 0:01:51.7]} 14... Bb4 {[%clk 0:02:46.6]} 15. O-O-O {[%clk
0:01:52.9]} 15... Bxc3 {[%clk 0:02:43.1]} 16. Rd3 {[%clk 0:01:54.2]} 16... Nd5
{[%clk 0:02:40.6]} 17. Bb3 {[%clk 0:01:51.1]} 17... Rxb3 {[%clk 0:02:37.5]} 18.
cxb3 {[%clk 0:01:49.8]} 18... e4 {[%clk 0:02:33.4]} 19. Rdd1 {[%clk 0:01:47.9]}
19... Ba6 {[%clk 0:02:33.5]} 0-1

[Event "*** Titled Tuesday Blitz"]
[Site "Chess.com"]
[Date "2019.12.03"]
[Round "7"]
[White "Jadeit90"]
[Black "sergeikim"]
[Result "0-1"]
[WhiteElo "2299"]
[BlackElo "2502"]
[TimeControl "180+2"]
[EndTime "14:30:53 PST"]
[Termination "sergeikim won by resignation"]

1. g3 {[%clk 0:03:01.9]} 1... Nf6 {[%clk 0:02:59.9]} 2. Bg2 {[%clk 0:03:03.1]}
2... g6 {[%clk 0:03:00.9]} 3. c4 {[%clk 0:03:04.4]} 3... Bg7 {[%clk 0:03:01.7]}
4. Nc3 {[%clk 0:03:05.8]} 4... O-O {[%clk 0:03:02.3]} 5. e4 {[%clk 0:03:07.1]}
5... d6 {[%clk 0:03:03.3]} 6. Nge2 {[%clk 0:03:08.5]} 6... e5 {[%clk 0:03:03.9]}
7. O-O {[%clk 0:03:09.7]} 7... Nbd7 {[%clk 0:02:59.3]} 8. d4 {[%clk 0:03:10.2]}
8... exd4 {[%clk 0:02:59.7]} 9. Nxd4 {[%clk 0:03:11.4]} 9... Re8 {[%clk
0:03:01.1]} 10. Re1 {[%clk 0:03:12.3]} 10... Nc5 {[%clk 0:03:01.7]} 11. b4
{[%clk 0:03:07.3]} 11... Ne6 {[%clk 0:03:01.8]} 12. Be3 {[%clk 0:02:56.8]} 12...
h6 {[%clk 0:03:02.7]} 13. Qd2 {[%clk 0:02:54.5]} 13... Ng5 {[%clk 0:03:02.5]}
14. f3 {[%clk 0:02:38.9]} 14... c6 {[%clk 0:03:00.2]} 15. Rad1 {[%clk
0:02:39.1]} 15... Kh7 {[%clk 0:02:53.8]} 16. h4 {[%clk 0:02:36.2]} 16... Ne6
{[%clk 0:02:52.7]} 17. Nxe6 {[%clk 0:02:34.7]} 17... Bxe6 {[%clk 0:02:52.7]} 18.
c5 {[%clk 0:02:35.2]} 18... dxc5 {[%clk 0:02:50.9]} 19. Qxd8 {[%clk 0:02:35.2]}
19... Rexd8 {[%clk 0:02:49.3]} 20. Bxc5 {[%clk 0:02:36.1]} 20... Nd7 {[%clk
0:02:04.2]} 21. Bd4 {[%clk 0:02:34.7]} 21... Ne5 {[%clk 0:02:00.3]} 22. f4
{[%clk 0:02:32.4]} 22... Rxd4 {[%clk 0:01:52.3]} 23. Rxd4 {[%clk 0:02:33]} 23...
Nf3+ {[%clk 0:01:52.7]} 24. Bxf3 {[%clk 0:02:34.2]} 24... Bxd4+ {[%clk
0:01:53.4]} 0-1

[Event "*** Titled Tuesday Blitz"]
[Site "Chess.com"]
[Date "2019.12.03"]
[Round "7"]
[White "Quiet_Desperation"]
[Black "Sajkochess"]
[Result "1-0"]
[WhiteElo "2501"]
[BlackElo "2265"]
[TimeControl "180+2"]
[EndTime "14:30:55 PST"]
[Termination "Quiet_Desperation won by checkmate"]

1. e4 {[%clk 0:03:01.9]} 1... c5 {[%clk 0:02:29.4]} 2. Nf3 {[%clk 0:03:01.3]}
2... e6 {[%clk 0:02:30.3]} 3. d4 {[%clk 0:03:02.5]} 3... cxd4 {[%clk 0:02:32.2]}
4. Nxd4 {[%clk 0:03:04.1]} 4... Nc6 {[%clk 0:02:33.4]} 5. Nc3 {[%clk 0:03:04.9]}
5... Qc7 {[%clk 0:02:34.3]} 6. Nb3 {[%clk 0:02:56.9]} 6... a6 {[%clk 0:02:29.8]}
7. Bd3 {[%clk 0:02:57.3]} 7... Nf6 {[%clk 0:02:28.7]} 8. Be3 {[%clk 0:02:58]}
8... d6 {[%clk 0:02:24.3]} 9. f4 {[%clk 0:02:56.2]} 9... Be7 {[%clk 0:02:24.2]}
10. O-O {[%clk 0:02:57.2]} 10... b5 {[%clk 0:02:20.3]} 11. a3 {[%clk 0:02:58]}
11... Bb7 {[%clk 0:02:20.3]} 12. Kh1 {[%clk 0:02:58.7]} 12... O-O {[%clk
0:02:11.1]} 13. Rf3 {[%clk 0:02:58.6]} 13... e5 {[%clk 0:02:03.4]} 14. Nd5
{[%clk 0:02:49.5]} 14... Nxd5 {[%clk 0:01:46.6]} 15. exd5 {[%clk 0:02:49.8]}
15... Nd8 {[%clk 0:01:34.1]} 16. Bxh7+ {[%clk 0:02:49.9]} 16... Kxh7 {[%clk
0:01:27.8]} 17. Rh3+ {[%clk 0:02:51.1]} 17... Kg8 {[%clk 0:01:27.8]} 18. Qh5
{[%clk 0:02:52.2]} 18... Qxc2 {[%clk 0:00:55.2]} 19. Qh8# {[%clk 0:02:51.6]} 1-0

[Event "*** Titled Tuesday Blitz"]
[Site "Chess.com"]
[Date "2019.12.03"]
[Round "7"]
[White "Bagirova"]
[Black "Everyfishknows"]
[Result "0-1"]
[WhiteElo "2109"]
[BlackElo "2300"]
[TimeControl "180+2"]
[EndTime "14:31:56 PST"]
[Termination "Everyfishknows won on time"]

1. e4 {[%clk 0:00:13.8]} 1... e5 {[%clk 0:02:56.1]} 2. Nf3 {[%clk 0:00:14.6]}
2... Nc6 {[%clk 0:02:55.9]} 3. Bc4 {[%clk 0:00:16.5]} 3... Nf6 {[%clk
0:02:56.5]} 4. Nc3 {[%clk 0:00:17.7]} 4... Nxe4 {[%clk 0:02:52.4]} 5. Nxe4
{[%clk 0:00:18.4]} 5... d5 {[%clk 0:02:53.2]} 6. Bd3 {[%clk 0:00:19.6]} 6...
dxe4 {[%clk 0:02:53.9]} 7. Bxe4 {[%clk 0:00:20]} 7... Bd6 {[%clk 0:02:52.7]} 8.
Bxc6+ {[%clk 0:00:20.9]} 8... bxc6 {[%clk 0:02:52.6]} 9. d3 {[%clk 0:00:21.6]}
9... O-O {[%clk 0:02:52.7]} 10. O-O {[%clk 0:00:22.8]} 10... Bg4 {[%clk
0:02:43]} 11. h3 {[%clk 0:00:23.9]} 11... Bh5 {[%clk 0:02:43.3]} 12. Be3 {[%clk
0:00:23.7]} 12... Qf6 {[%clk 0:02:41.6]} 13. c3 {[%clk 0:00:22.6]} 13... Bxf3
{[%clk 0:02:41.1]} 14. Qxf3 {[%clk 0:00:23.8]} 14... Qxf3 {[%clk 0:02:42.4]} 15.
gxf3 {[%clk 0:00:25.7]} 15... a6 {[%clk 0:02:34.5]} 0-1

[Event "*** Titled Tuesday Blitz"]
[Site "Chess.com"]
[Date "2019.12.03"]
[Round "7"]
[White "saraswathii"]
[Black "JoakimVonAnd"]
[Result "0-1"]
[WhiteElo "2240"]
[BlackElo "2387"]
[TimeControl "180+2"]
[EndTime "14:32:02 PST"]
[Termination "JoakimVonAnd won by resignation"]

1. e4 {[%clk 0:03:01.9]} 1... c5 {[%clk 0:03:01]} 2. Nf3 {[%clk 0:03:01.9]} 2...
d6 {[%clk 0:03:02.1]} 3. d3 {[%clk 0:03:03.1]} 3... g6 {[%clk 0:03:01.3]} 4. g3
{[%clk 0:03:04.1]} 4... Bg7 {[%clk 0:03:02.6]} 5. Bg2 {[%clk 0:03:05]} 5... Nc6
{[%clk 0:03:04.1]} 6. O-O {[%clk 0:03:05.9]} 6... Nf6 {[%clk 0:03:04.2]} 7. c3
{[%clk 0:03:06.3]} 7... O-O {[%clk 0:03:03.5]} 8. Qe2 {[%clk 0:03:06.3]} 8...
Rb8 {[%clk 0:03:03.4]} 9. d4 {[%clk 0:03:05.3]} 9... cxd4 {[%clk 0:02:51.6]} 10.
cxd4 {[%clk 0:03:02.3]} 10... d5 {[%clk 0:02:53]} 11. e5 {[%clk 0:03:02.3]}
11... Ne4 {[%clk 0:02:54.2]} 12. Nc3 {[%clk 0:03:02.1]} 12... Bf5 {[%clk
0:02:53.1]} 13. Be3 {[%clk 0:02:57]} 13... Nxc3 {[%clk 0:02:51]} 14. bxc3 {[%clk
0:02:56]} 14... Na5 {[%clk 0:02:52.1]} 15. Nd2 {[%clk 0:02:51.4]} 15... Rc8
{[%clk 0:02:51.7]} 16. Rac1 {[%clk 0:02:46.7]} 16... Nc4 {[%clk 0:02:52.2]} 17.
Nxc4 {[%clk 0:02:41.9]} 17... Rxc4 {[%clk 0:02:54.1]} 18. Qd2 {[%clk 0:02:42.2]}
18... Qa5 {[%clk 0:02:50.3]} 19. Qb2 {[%clk 0:02:33]} 19... b6 {[%clk 0:02:50]}
20. Rfd1 {[%clk 0:02:20]} 20... Rfc8 {[%clk 0:02:49.6]} 21. Bd2 {[%clk
0:02:00.3]} 21... e6 {[%clk 0:02:35.7]} 22. Bf1 {[%clk 0:01:58.1]} 22... Ra4
{[%clk 0:02:35.8]} 23. Ra1 {[%clk 0:01:27.1]} 23... Bf8 {[%clk 0:02:33.2]} 24.
c4 {[%clk 0:01:18.5]} 24... Bb4 {[%clk 0:02:32.3]} 25. cxd5 {[%clk 0:01:02.5]}
25... Rc2 {[%clk 0:02:27.9]} 26. Bxb4 {[%clk 0:01:00.5]} 26... Rxb4 {[%clk
0:02:27.9]} 0-1

[Event "*** Titled Tuesday Blitz"]
[Site "Chess.com"]
[Date "2019.12.03"]
[Round "7"]
[White "PavelChernomordik"]
[Black "FelixJoseYnojosa"]
[Result "0-1"]
[WhiteElo "2451"]
[BlackElo "2609"]
[TimeControl "180+2"]
[EndTime "14:32:53 PST"]
[Termination "FelixJoseYnojosa won by resignation"]

1. e4 {[%clk 0:03:00]} 1... c5 {[%clk 0:03:01]} 2. Nc3 {[%clk 0:02:59.8]} 2...
Nc6 {[%clk 0:03:02.2]} 3. Bb5 {[%clk 0:02:59.5]} 3... e6 {[%clk 0:03:03.3]} 4.
Bxc6 {[%clk 0:02:59.9]} 4... bxc6 {[%clk 0:03:04.4]} 5. e5 {[%clk 0:03:01]} 5...
Ne7 {[%clk 0:03:05.5]} 6. f4 {[%clk 0:03:00.6]} 6... Ng6 {[%clk 0:03:06.7]} 7.
d3 {[%clk 0:03:00.9]} 7... f6 {[%clk 0:03:08]} 8. Nf3 {[%clk 0:02:57.1]} 8...
fxe5 {[%clk 0:03:08.5]} 9. fxe5 {[%clk 0:02:57.3]} 9... Be7 {[%clk 0:03:10]} 10.
O-O {[%clk 0:02:56.3]} 10... O-O {[%clk 0:03:11.3]} 11. Be3 {[%clk 0:02:52.6]}
11... Rf5 {[%clk 0:03:09.5]} 12. g4 {[%clk 0:02:49.4]} 12... Rxf3 {[%clk
0:03:07.9]} 13. Qxf3 {[%clk 0:02:43.7]} 13... Nxe5 {[%clk 0:03:09.5]} 14. Qg2
{[%clk 0:02:41.5]} 14... d5 {[%clk 0:03:09]} 15. Bf4 {[%clk 0:02:28.1]} 15...
Ng6 {[%clk 0:03:09.6]} 16. Rae1 {[%clk 0:02:21.1]} 16... Bf6 {[%clk 0:03:10.2]}
17. Bd2 {[%clk 0:02:15.9]} 17... Bd4+ {[%clk 0:02:55.5]} 18. Kh1 {[%clk
0:02:15.1]} 18... Bxc3 {[%clk 0:02:55.7]} 19. bxc3 {[%clk 0:02:15]} 19... e5
{[%clk 0:02:55.7]} 20. Qf2 {[%clk 0:02:09.4]} 20... d4 {[%clk 0:02:40.8]} 21.
Qf7+ {[%clk 0:02:07.8]} 21... Kh8 {[%clk 0:02:41]} 22. Bg5 {[%clk 0:02:08.1]}
22... Qg8 {[%clk 0:02:36]} 23. h3 {[%clk 0:02:01.8]} 23... dxc3 {[%clk
0:02:31.2]} 24. Qc7 {[%clk 0:01:52.1]} 24... Be6 {[%clk 0:02:25.7]} 25. Be3
{[%clk 0:01:46.2]} 25... Bxa2 {[%clk 0:02:14.1]} 26. Bxc5 {[%clk 0:01:45.8]}
26... Qd5+ {[%clk 0:02:14.3]} 27. Kh2 {[%clk 0:01:45.1]} 27... Qxc5 {[%clk
0:02:14.2]} 28. Ra1 {[%clk 0:01:27.6]} 28... Bd5 {[%clk 0:02:07.8]} 29. Ra5
{[%clk 0:01:18.6]} 29... Qe3 {[%clk 0:02:04.7]} 30. Rxd5 {[%clk 0:00:54.2]}
30... cxd5 {[%clk 0:02:06.6]} 31. Qxc3 {[%clk 0:00:49.6]} 31... Nf4 {[%clk
0:02:04.3]} 0-1

[Event "*** Titled Tuesday Blitz"]
[Site "Chess.com"]
[Date "2019.12.03"]
[Round "7"]
[White "Bad4life"]
[Black "Witik"]
[Result "0-1"]
[WhiteElo "2399"]
[BlackElo "2586"]
[TimeControl "180+2"]
[EndTime "14:33:02 PST"]
[Termination "Witik won by resignation"]

1. e4 {[%clk 0:03:01.9]} 1... c6 {[%clk 0:03:00.8]} 2. Nc3 {[%clk 0:03:02.6]}
2... d5 {[%clk 0:03:02.3]} 3. Qe2 {[%clk 0:03:04]} 3... Nf6 {[%clk 0:03:00]} 4.
g3 {[%clk 0:03:03]} 4... e5 {[%clk 0:02:57.4]} 5. exd5 {[%clk 0:03:03.5]} 5...
Bd6 {[%clk 0:02:58.4]} 6. dxc6 {[%clk 0:02:58.3]} 6... Nxc6 {[%clk 0:02:59.2]}
7. Bg2 {[%clk 0:02:55.5]} 7... Nd4 {[%clk 0:02:59.5]} 8. Qd1 {[%clk 0:02:56.6]}
8... Bg4 {[%clk 0:02:57.3]} 9. f3 {[%clk 0:02:51.4]} 9... Bf5 {[%clk 0:02:56]}
10. d3 {[%clk 0:02:51.4]} 10... O-O {[%clk 0:02:47.6]} 11. Nge2 {[%clk
0:02:52.7]} 11... Bc5 {[%clk 0:02:48.5]} 12. Ne4 {[%clk 0:02:53.2]} 12... Bb6
{[%clk 0:02:43.7]} 13. Nxd4 {[%clk 0:02:43.8]} 13... Qxd4 {[%clk 0:02:22.2]} 14.
Nxf6+ {[%clk 0:02:43.5]} 14... gxf6 {[%clk 0:02:22.1]} 15. Qe2 {[%clk
0:02:35.6]} 15... Rac8 {[%clk 0:02:22.4]} 16. h4 {[%clk 0:02:16.6]} 16... Ba5+
{[%clk 0:01:41]} 17. Kf1 {[%clk 0:02:11.5]} 17... Rxc2 {[%clk 0:01:41.1]} 18.
Qxc2 {[%clk 0:01:47.4]} 18... Bxd3+ {[%clk 0:01:40.5]} 19. Qxd3 {[%clk
0:01:48.9]} 19... Qxd3+ {[%clk 0:01:41.2]} 20. Kg1 {[%clk 0:01:50.6]} 20... Rc8
{[%clk 0:01:34.1]} 21. Bh6 {[%clk 0:01:33.6]} 21... Qg6 {[%clk 0:01:13.4]} 22.
Rc1 {[%clk 0:01:25.7]} 22... Rxc1+ {[%clk 0:01:08.3]} 23. Bxc1 {[%clk
0:01:27.6]} 23... Qxg3 {[%clk 0:01:09.6]} 24. b4 {[%clk 0:01:05.9]} 24... Bb6+
{[%clk 0:01:06.3]} 0-1

[Event "*** Titled Tuesday Blitz"]
[Site "Chess.com"]
[Date "2019.12.03"]
[Round "7"]
[White "ural58"]
[Black "SHIVACalypso"]
[Result "0-1"]
[WhiteElo "2361"]
[BlackElo "2286"]
[TimeControl "180+2"]
[EndTime "14:33:08 PST"]
[Termination "SHIVACalypso won by checkmate"]

1. e4 {[%clk 0:03:01.9]} 1... e6 {[%clk 0:03:00.8]} 2. Qe2 {[%clk 0:02:59.2]}
2... c5 {[%clk 0:03:00.5]} 3. b3 {[%clk 0:02:22.2]} 3... Nc6 {[%clk 0:02:59.3]}
4. Bb2 {[%clk 0:02:14.8]} 4... e5 {[%clk 0:03:00.7]} 5. f4 {[%clk 0:01:43.3]}
5... d6 {[%clk 0:03:00.3]} 6. Nc3 {[%clk 0:01:08]} 6... g6 {[%clk 0:02:58.8]} 7.
O-O-O {[%clk 0:01:06.1]} 7... Bg7 {[%clk 0:03:00.3]} 8. Qf2 {[%clk 0:00:42.7]}
8... exf4 {[%clk 0:02:53.4]} 9. Qxf4 {[%clk 0:00:39.4]} 9... Nge7 {[%clk
0:02:53]} 10. Bc4 {[%clk 0:00:36.4]} 10... O-O {[%clk 0:02:50.7]} 11. Nf3 {[%clk
0:00:30.4]} 11... Be6 {[%clk 0:02:47.2]} 12. h4 {[%clk 0:00:20.8]} 12... Bxc4
{[%clk 0:02:46.7]} 13. bxc4 {[%clk 0:00:22.4]} 13... Ne5 {[%clk 0:02:36.5]} 14.
h5 {[%clk 0:00:22.3]} 14... Nxc4 {[%clk 0:02:22.3]} 15. hxg6 {[%clk 0:00:14.4]}
15... fxg6 {[%clk 0:02:23.3]} 16. Qg3 {[%clk 0:00:11.5]} 16... Qb6 {[%clk
0:02:05.7]} 17. Ba1 {[%clk 0:00:09.2]} 17... Na3 {[%clk 0:02:06.1]} 18. Qh4
{[%clk 0:00:07.8]} 18... h5 {[%clk 0:02:00.2]} 19. Qxe7 {[%clk 0:00:04.8]} 19...
Bxc3 {[%clk 0:02:01.5]} 20. dxc3 {[%clk 0:00:06.1]} 20... Qb1+ {[%clk
0:01:57.3]} 21. Kd2 {[%clk 0:00:06.5]} 21... Qxc2+ {[%clk 0:01:59.2]} 22. Ke3
{[%clk 0:00:07.4]} 22... Nc4# {[%clk 0:01:54]} 0-1

[Event "*** Titled Tuesday Blitz"]
[Site "Chess.com"]
[Date "2019.12.03"]
[Round "7"]
[White "BigAl"]
[Black "DenishevM"]
[Result "0-1"]
[WhiteElo "2452"]
[BlackElo "2610"]
[TimeControl "180+2"]
[EndTime "14:33:44 PST"]
[Termination "DenishevM won on time"]

1. e4 {[%clk 0:03:01.8]} 1... c5 {[%clk 0:02:57.8]} 2. Nc3 {[%clk 0:03:02.4]}
2... a6 {[%clk 0:02:57.2]} 3. g3 {[%clk 0:03:03.3]} 3... b5 {[%clk 0:02:58.3]}
4. Bg2 {[%clk 0:03:05.2]} 4... Bb7 {[%clk 0:02:59.1]} 5. d3 {[%clk 0:03:06.5]}
5... h5 {[%clk 0:03:00.5]} 6. h3 {[%clk 0:03:07.3]} 6... h4 {[%clk 0:03:01.2]}
7. g4 {[%clk 0:03:08.6]} 7... e6 {[%clk 0:03:01.6]} 8. Nf3 {[%clk 0:03:02.7]}
8... Nc6 {[%clk 0:02:59.7]} 9. O-O {[%clk 0:03:03.5]} 9... Nge7 {[%clk 0:02:43]}
10. Re1 {[%clk 0:03:02.9]} 10... Ng6 {[%clk 0:02:40.1]} 11. d4 {[%clk
0:02:52.9]} 11... cxd4 {[%clk 0:02:38.6]} 12. Nxd4 {[%clk 0:02:54.2]} 12... Bc5
{[%clk 0:02:40]} 13. Be3 {[%clk 0:02:29.3]} 13... Qb6 {[%clk 0:02:39.2]} 14.
Nxc6 {[%clk 0:01:21.7]} 14... Bxc6 {[%clk 0:02:41.1]} 15. Nd5 {[%clk 0:01:13.4]}
15... Bxd5 {[%clk 0:02:32.2]} 16. exd5 {[%clk 0:01:13.6]} 16... e5 {[%clk
0:02:29]} 17. Be4 {[%clk 0:00:51.2]} 17... Nf4 {[%clk 0:02:19.7]} 18. Bxf4
{[%clk 0:00:41.5]} 18... Bxf2+ {[%clk 0:02:21.6]} 19. Kg2 {[%clk 0:00:42.4]}
19... Bxe1 {[%clk 0:02:23.5]} 20. Qxe1 {[%clk 0:00:40.5]} 20... exf4 {[%clk
0:02:24.8]} 21. d6 {[%clk 0:00:28.8]} 21... O-O-O {[%clk 0:02:10.1]} 22. Qd2
{[%clk 0:00:15.3]} 22... Rde8 {[%clk 0:01:47.6]} 23. Re1 {[%clk 0:00:14.2]}
23... Qc5 {[%clk 0:01:42.3]} 24. Qa5 {[%clk 0:00:07.3]} 24... Qxd6 {[%clk
0:01:31.2]} 0-1

[Event "*** Titled Tuesday Blitz"]
[Site "Chess.com"]
[Date "2019.12.03"]
[Round "7"]
[White "MatthewG-p4p"]
[Black "gusanchutik"]
[Result "0-1"]
[WhiteElo "2778"]
[BlackElo "2963"]
[TimeControl "180+2"]
[EndTime "14:33:50 PST"]
[Termination "gusanchutik won by resignation"]

1. Nf3 {[%clk 0:03:01.9]} 1... d5 {[%clk 0:03:00.6]} 2. b3 {[%clk 0:03:02.4]}
2... Bg4 {[%clk 0:03:00.4]} 3. Bb2 {[%clk 0:03:03.3]} 3... Bxf3 {[%clk
0:03:01.6]} 4. exf3 {[%clk 0:03:05.2]} 4... e6 {[%clk 0:03:02.9]} 5. g3 {[%clk
0:03:06.3]} 5... Nf6 {[%clk 0:03:04.2]} 6. Bg2 {[%clk 0:03:07.9]} 6... g6 {[%clk
0:03:05.9]} 7. O-O {[%clk 0:03:09.5]} 7... Bg7 {[%clk 0:03:07.8]} 8. f4 {[%clk
0:03:11]} 8... O-O {[%clk 0:03:08.8]} 9. d3 {[%clk 0:03:12.5]} 9... c5 {[%clk
0:03:10.4]} 10. Nd2 {[%clk 0:03:14]} 10... Nc6 {[%clk 0:03:12]} 11. Re1 {[%clk
0:03:12.1]} 11... b5 {[%clk 0:03:10.9]} 12. a4 {[%clk 0:03:12.1]} 12... b4
{[%clk 0:03:11.4]} 13. Nf3 {[%clk 0:03:12.6]} 13... Re8 {[%clk 0:03:11.4]} 14.
Ne5 {[%clk 0:03:08.8]} 14... Nxe5 {[%clk 0:03:12.5]} 15. fxe5 {[%clk 0:03:09.7]}
15... Nd7 {[%clk 0:03:14]} 16. f4 {[%clk 0:03:10.4]} 16... Rc8 {[%clk
0:03:15.5]} 17. a5 {[%clk 0:03:09.6]} 17... Nb8 {[%clk 0:03:15.7]} 18. c4 {[%clk
0:03:01.7]} 18... bxc3 {[%clk 0:03:16.6]} 19. Bxc3 {[%clk 0:03:03.2]} 19... Nc6
{[%clk 0:03:18.5]} 20. Re2 {[%clk 0:02:58.1]} 20... Rb8 {[%clk 0:03:19.6]} 21.
Rb2 {[%clk 0:02:43.7]} 21... Bf8 {[%clk 0:03:20]} 22. Kh1 {[%clk 0:02:39.6]}
22... Qc7 {[%clk 0:03:19.4]} 23. d4 {[%clk 0:02:37.3]} 23... cxd4 {[%clk
0:03:18.4]} 24. Bxd4 {[%clk 0:02:35.7]} 24... Nxd4 {[%clk 0:03:20.3]} 25. Qxd4
{[%clk 0:02:37.6]} 25... Rec8 {[%clk 0:03:22.2]} 26. Rbb1 {[%clk 0:02:34.9]}
26... Bc5 {[%clk 0:03:20.3]} 27. Qd3 {[%clk 0:02:35.6]} 27... Bb4 {[%clk
0:03:19.9]} 28. a6 {[%clk 0:02:34]} 28... Rb6 {[%clk 0:03:19.9]} 29. Bf3 {[%clk
0:02:31.4]} 29... Rc6 {[%clk 0:03:20.5]} 30. Bd1 {[%clk 0:02:23.3]} 30... Rc3
{[%clk 0:03:21.4]} 31. Qd4 {[%clk 0:02:24.6]} 31... Qb8 {[%clk 0:03:13.2]} 32.
Ra4 {[%clk 0:02:22.5]} 32... Bf8 {[%clk 0:03:14.4]} 33. Ra2 {[%clk 0:02:09.3]}
33... h5 {[%clk 0:03:04.1]} 34. Qd2 {[%clk 0:01:58]} 34... Bb4 {[%clk
0:03:03.9]} 35. Qd4 {[%clk 0:01:57.6]} 35... Bf8 {[%clk 0:03:04.8]} 36. Qd2
{[%clk 0:01:57.6]} 36... Qb4 {[%clk 0:03:05.1]} 37. Ra4 {[%clk 0:01:55.1]} 37...
Qb6 {[%clk 0:03:06.1]} 38. Qd4 {[%clk 0:01:53.8]} 38... Qb5 {[%clk 0:02:55]} 39.
Kg2 {[%clk 0:01:31.9]} 39... Rc2+ {[%clk 0:02:06.6]} 0-1

[Event "*** Titled Tuesday Blitz"]
[Site "Chess.com"]
[Date "2019.12.03"]
[Round "7"]
[White "GelmanAlexander"]
[Black "Denis_Palkovich"]
[Result "1-0"]
[WhiteElo "2502"]
[BlackElo "2262"]
[TimeControl "180+2"]
[EndTime "14:33:54 PST"]
[Termination "GelmanAlexander won on time"]

1. e4 {[%clk 0:03:01.9]} 1... c6 {[%clk 0:03:00.4]} 2. Ne2 {[%clk 0:03:02.3]}
2... d5 {[%clk 0:03:00.2]} 3. e5 {[%clk 0:03:02.9]} 3... g6 {[%clk 0:02:33.9]}
4. d4 {[%clk 0:02:49.6]} 4... Bg7 {[%clk 0:02:32.2]} 5. Nbc3 {[%clk 0:02:42.4]}
5... Nh6 {[%clk 0:02:32.4]} 6. h4 {[%clk 0:02:39.2]} 6... Na6 {[%clk 0:02:20.9]}
7. h5 {[%clk 0:02:38]} 7... Bg4 {[%clk 0:01:59.2]} 8. f3 {[%clk 0:02:35.3]} 8...
Be6 {[%clk 0:01:50.8]} 9. g4 {[%clk 0:02:33]} 9... Qb6 {[%clk 0:01:26.8]} 10. a4
{[%clk 0:01:58]} 10... O-O-O {[%clk 0:01:14.7]} 11. a5 {[%clk 0:01:56.5]} 11...
Qc7 {[%clk 0:01:07.5]} 12. Bf4 {[%clk 0:01:45.3]} 12... Qd7 {[%clk 0:00:48.1]}
13. Qd2 {[%clk 0:01:44.1]} 13... c5 {[%clk 0:00:45.5]} 14. Bxh6 {[%clk
0:01:41.2]} 14... Bxh6 {[%clk 0:00:41.2]} 15. Qxh6 {[%clk 0:01:42]} 15... Nb4
{[%clk 0:00:27.1]} 16. Qd2 {[%clk 0:01:36]} 16... f6 {[%clk 0:00:22.6]} 17. a6
{[%clk 0:01:26.9]} 17... fxe5 {[%clk 0:00:15.9]} 18. axb7+ {[%clk 0:01:27.5]}
18... Qxb7 {[%clk 0:00:16.9]} 19. dxe5 {[%clk 0:01:18.5]} 19... d4 {[%clk
0:00:18.1]} 20. Ne4 {[%clk 0:01:19.7]} 20... Qd5 {[%clk 0:00:10.1]} 21. Ra5
{[%clk 0:01:02.4]} 1-0

[Event "*** Titled Tuesday Blitz"]
[Site "Chess.com"]
[Date "2019.12.03"]
[Round "7"]
[White "Gentlejimmy7"]
[Black "scrapnel"]
[Result "1-0"]
[WhiteElo "2599"]
[BlackElo "2691"]
[TimeControl "180+2"]
[EndTime "14:33:57 PST"]
[Termination "Gentlejimmy7 won on time"]

1. d4 {[%clk 0:03:01.9]} 1... Nf6 {[%clk 0:03:00.3]} 2. Nf3 {[%clk 0:02:57.5]}
2... g6 {[%clk 0:03:00.9]} 3. g3 {[%clk 0:02:57.6]} 3... Bg7 {[%clk 0:03:01.7]}
4. Bg2 {[%clk 0:02:59.5]} 4... O-O {[%clk 0:03:01.8]} 5. O-O {[%clk 0:03:01.4]}
5... d5 {[%clk 0:03:02.7]} 6. c4 {[%clk 0:03:01.2]} 6... dxc4 {[%clk 0:03:03.8]}
7. Na3 {[%clk 0:02:58]} 7... c3 {[%clk 0:03:04.2]} 8. bxc3 {[%clk 0:02:59.9]}
8... c5 {[%clk 0:03:05.4]} 9. Re1 {[%clk 0:02:59.6]} 9... Nc6 {[%clk 0:02:59.5]}
10. e4 {[%clk 0:02:59.9]} 10... Bg4 {[%clk 0:02:45.9]} 11. Bb2 {[%clk
0:02:47.5]} 11... Qb6 {[%clk 0:01:54.5]} 12. Rb1 {[%clk 0:02:46.6]} 12... Rad8
{[%clk 0:01:41.2]} 13. d5 {[%clk 0:02:46.6]} 13... Ne5 {[%clk 0:01:37.8]} 14. c4
{[%clk 0:02:36.6]} 14... Qa6 {[%clk 0:00:59.7]} 15. Bxe5 {[%clk 0:02:25.3]}
15... Qxa3 {[%clk 0:01:00.6]} 16. Qb3 {[%clk 0:02:17.7]} 16... Qxb3 {[%clk
0:00:56.4]} 17. Rxb3 {[%clk 0:02:19.6]} 17... b6 {[%clk 0:00:39.8]} 18. h3
{[%clk 0:02:20.9]} 18... Bc8 {[%clk 0:00:37.1]} 19. a4 {[%clk 0:02:19.2]} 19...
Nd7 {[%clk 0:00:25.3]} 20. Bxg7 {[%clk 0:02:19.4]} 20... Kxg7 {[%clk 0:00:26.4]}
21. e5 {[%clk 0:02:16.4]} 21... e6 {[%clk 0:00:21.4]} 22. d6 {[%clk 0:02:17]}
22... Ba6 {[%clk 0:00:20.9]} 23. Bf1 {[%clk 0:02:09.5]} 23... f6 {[%clk
0:00:21.2]} 24. exf6+ {[%clk 0:02:00.7]} 24... Rxf6 {[%clk 0:00:15.7]} 25. Ng5
{[%clk 0:01:57.5]} 25... e5 {[%clk 0:00:10]} 26. Ne4 {[%clk 0:01:49.7]} 26...
Re6 {[%clk 0:00:10.9]} 27. a5 {[%clk 0:01:48.1]} 27... Bb7 {[%clk 0:00:09.8]}
28. axb6 {[%clk 0:01:44.6]} 28... axb6 {[%clk 0:00:10.7]} 29. Ng5 {[%clk
0:01:43.4]} 29... Rxd6 {[%clk 0:00:10.6]} 30. Rd3 {[%clk 0:01:39.6]} 30... Rxd3
{[%clk 0:00:02.1]} 31. Ne6+ {[%clk 0:01:40.8]} 1-0